Cogmind - Beta 13 X1 @@@ ROGUE MODE // 2023.07.10 @ 14:22:26 Player: Momo Result: Destroyed by 8K-UGK(R) with Subdweller Laser Performance ------------- Evolutions (0) 0 Regions Visited (3) 600 Robots Destroyed (23) 115 Value Destroyed (454) 454 Prototype IDs (0) 0 Alien Tech Used (0) 0 Bonus (-273) -273 TOTAL SCORE: 896 Bonus ------- Follower Combat Kills 25 Friendly Fire -298 Cogmind --------- Core Integrity 0/250 Matter 78/300 Energy 100/100 System Corruption 0% Temperature Cool (6) Movement Treading (480) Ox4 Location -10/Subcaves Parts ------- > --- POWER (1) -------- (None) > --- PROPULSION (2) --- Light Treads > --- UTILITY (2) ------ Huge Storage Unit Targeting Computer > --- WEAPON (2) ------- Bore Cannon Subdweller Shrapnel Launcher > --- INVENTORY (25) --- Subdweller Power Source Myomer Leg Subdweller Monowheel Airjet Large Matter Pod (150) Improved Terrain Scan Processor Advanced Targeting Computer Reaction Control System Heavy Armor Plating Improved Light Armor Plating Scrap Shield Beam Cannon Light Assault Rifle Light Assault Rifle Battle Rifle Subdweller Machine Gun Barrage Gun Barrage Gun Makeshift Spear Explosive Trap Explosive Trap Explosive Trap Shrapnel Trap Peak State ------------ > --- POWER ------------ Light Ion Engine > --- PROPULSION ------- Light Treads Light Treads > --- UTILITY ---------- Huge Storage Unit Targeting Computer > --- WEAPON ----------- Barrage Gun Bore Cannon > --- INVENTORY -------- Subdweller Power Source Myomer Leg Airjet Heat Sink Large Matter Pod Improved Terrain Scan Processor Advanced Targeting Computer Reaction Control System Heavy Armor Plating Improved Light Armor Plating Scrap Shield Small Laser Beam Cannon Light Assault Rifle Light Assault Rifle Battle Rifle Barrage Gun Makeshift Spear Explosive Trap Explosive Trap Explosive Trap Shrapnel Trap [Rating: 18] Favorites ----------- Power Light Ion Engine Engine Light Ion Engine Propulsion Compact Wheel Treads Light Treads Wheel Compact Wheel Utility Targeting Computer Storage Huge Storage Unit Processor Targeting Computer Weapon Grenade Launcher Energy Gun Small Laser Energy Cannon Beam Cannon Ballistic Gun Light Assault Rifle Ballistic Cannon Bore Cannon Launcher Grenade Launcher Build | -11 -10 -10 -10 ------- Run | Jun Mat Min Sub Slots Evolved . | . . . . Power . | . . . . Propulsion . | . . . . Utility . | . . . . Weapon . | . . . . Parts Attached 19 | 2 6 4 7 Power 2 | . 1 . 1 Engine 2 | . 1 . 1 Core . | . . . . Reactor . | . . . . Propulsion 7 | . 3 2 2 Treads 5 | . 3 . 2 Leg . | . . . . Wheel 2 | . . 2 . Hover . | . . . . Flight . | . . . . Utility 3 | . 2 1 . Device . | . . . . Storage 2 | . 1 1 . Processor 1 | . 1 . . Hackware . | . . . . Protection . | . . . . Artifact . | . . . . Weapon 7 | 2 . 1 4 Energy Gun 1 | 1 . . . Energy Cannon 1 | . . . 1 Ballistic Gun 2 | 1 . . 1 Ballistic Cannon 1 | . . . 1 Launcher 2 | . . 1 1 Special Weapon . | . . . . Impact Weapon . | . . . . Slashing Weapon . | . . . . Piercing Weapon . | . . . . Special Melee Weapon . | . . . . Unidentified Prototypes . | . . . . Parts Lost 7 | . . 2 5 Power 2 | . . 1 1 Propulsion 3 | . . 1 2 Utility . | . . . . Weapon 2 | . . . 2 Highest Loss Streak 2 | . . 2 2 To Critical Strikes . | . . . . Average Slot Usage (%) 82 | . 74 79 84 Engine 6 | . 7 3 7 Treads 9 | . 27 4 9 Wheel 10 | . . 13 10 Storage 13 | . 5 14 14 Processor 13 | . 5 14 14 Energy Gun 2 | . 14 3 . Energy Cannon 5 | . . . 7 Ballistic Gun 7 | . 14 14 4 Ballistic Cannon 3 | . . . 5 Launcher 8 | . . 10 8 Naked Turns . | . . . . Heaviest Build 100 | 2 8 84 100 Greatest Support 40 | 3 40 40 40 Greatest Overweight (x) 5 | . . 5 5 Average Overweight (x) 3 | . . 2 4 Largest Inventory Capacity 25 | 5 5 25 25 Average Capacity 21 | 5 5 15 25 Most Carried 25 | 5 5 21 25 Average Carried 19 | 3 4 9 24 Final Capacity 25 | 5 5 25 25 Final Carried 25 | 5 5 21 25 Class Distribution -------------------- 100% | Mutant Dominant Class ---------------- Mutant | -10/Materials Mutant | -10/Mines Mutant | -10/Subcaves Resources | -11 -10 -10 -10 ----------- Run | Jun Mat Min Sub Matter Collected 798 | 220 69 215 294 Remotely . | . . . . Salvage Created 361 | . 112 7 242 Parts 36 | . 15 4 17 Haulers Intercepted 1 | . 1 . . Recyclers Shooed 1 | . 1 . . Parts Field Recycled . | . . . . Retrieved Matter . | . . . . Parts Self-Destructed 14 | . . . 14 Prevented . | . . . . Kills | -11 -10 -10 -10 ------- Run | Jun Mat Min Sub Combat Hostiles Destroyed 19 | . 5 3 11 Guns 6 | . 5 1 . Cannons 3 | . . . 3 AOE 10 | . . 2 8 Classes Destroyed 6 | . 2 . 4 Hauler 1 | . 1 . . Turret 1 | . . . 1 Swarmer 12 | . 5 3 4 Grunt 3 | . . . 3 Sentry 1 | . . . 1 Subdweller 5 | . . . 5 Best Kill Streak 6 | . 5 3 6 Combat Bots Only 5 | . 5 3 5 Max Kills in Single Turn 4 | . 2 2 4 Gunslinging 1 | . 1 . . Exploded 3 | . . 2 3 Melee . | . . . . Uniques/NPCs Destroyed . | . . . . Combat | -11 -10 -10 -10 -------- Run | Jun Mat Min Sub Damage Taken 964 | . 252 103 609 Core 265 | . 130 16 119 Absorbed by Shields . | . . . . Core Remaining (%) 100 | 100 . . . Volleys Fired 73 | . 17 8 48 Largest 2 | . 2 2 1 Hottest 60 | . 60 60 60 Shots Fired 94 | . 34 12 48 Gun 47 | . 34 11 2 Cannon 27 | . . . 27 Launcher 20 | . . 1 19 Special . | . . . . Kinetic 60 | . 17 7 36 Thermal 26 | . 17 4 5 Explosive 8 | . . 1 7 Electromagnetic . | . . . . Robot Hit Streak 8 | . 8 6 5 Robot Miss Streak 3 | . 3 1 3 Penetration Max . | . . . . Secondary Targets 3 | . 3 . . Max Gunslinging Chain 1 | . 1 . . Shots Hit Robots 49 | . 16 10 23 Core Hits 44 | . 9 9 26 Critical Kills 5 | . 1 . 4 Critical Parts Destroyed 1 | . . . 1 Critical Strikes 11 | . 1 . 10 Destroy 11 | . 1 . 10 Melee Attacks . | . . . . Impact . | . . . . Slashing . | . . . . Piercing . | . . . . Sneak Attacks . | . . . . Combat Hostiles . | . . . . Follow-up Attacks . | . . . . Damage Inflicted 1678 | . 172 208 1298 Guns 249 | . 172 77 . Cannons 309 | . . . 309 Explosions 1120 | . . 131 989 Melee . | . . . . Ramming . | . . . . Kinetic 1310 | . 53 46 1211 Thermal 202 | . 119 31 52 Explosive 166 | . . 131 35 Electromagnetic . | . . . . Impact . | . . . . Slashing . | . . . . Piercing . | . . . . Highest Corruption . | . . . . Average Corruption . | . . . . Corruption Purged . | . . . . Corruption Blocked . | . . . . Overload Shots . | . . . . Overflow Damage 12 | . . 6 6 Projectiles . | . . . . Explosions 12 | . . 6 6 Melee . | . . . . Knockbacks 1 | . . . 1 Impact . | . . . . Kinetic 1 | . . . 1 Secondary . | . . . . Self-Inflicted Damage 72 | . . 25 47 Shots 3 | . . 1 2 Rammed . | . . . . Targets Rammed . | . . . . Kicked . | . . . . Crushed . | . . . . Highest Temperature 58 | . 40 58 . Average Temperature 17 | . 12 31 . Received Heat Transfer 138 | . 6 30 102 Siege Activations . | . . . . Robots Corrupted . | . . . . Combat Hostiles . | . . . . Parts Fried . | . . . . Impact Corruptions . | . . . . Robots Melted . | . . . . Combat Hostiles . | . . . . Parts Melted . | . . . . Heat Transferred 461 | . 275 75 111 Parts Sabotaged . | . . . . Parts Stolen . | . . . . Parts Stripped . | . . . . Power Chain Reactions . | . . . . Missiles Intercepted . | . . . . Alert | -11 -10 -10 -10 ------- Run | Jun Mat Min Sub Peak Influence 137 | . 137 94 . Initial 13 | . . 13 . Average 21 | . 26 20 . Maximum Alert Level . | . . . . Low Security (%) 100 | 100 100 100 . Level 1 . | . . . . Level 2 . | . . . . Level 3 . | . . . . Level 4 . | . . . . Level 5 . | . . . . High Security . | . . . . Max Security . | . . . . Squads Dispatched 1 | . . 1 . Investigation 1 | . . 1 . Extermination . | . . . . Reinforcement . | . . . . Assault . | . . . . Garrison . | . . . . Intercept . | . . . . Searches Triggered . | . . . . Construction Impeded . | . . . . Haulers Reinforced . | . . . . Active Scanning Responses . | . . . . Cargo Convoy Interrupts . | . . . . Stealth | -11 -10 -10 -10 --------- Run | Jun Mat Min Sub Distress Signals . | . . . . Communications Jammed . | . . . . Distress Signals . | . . . . Times Spotted 40 | . 13 6 21 Peak Tracking Total 6 | . 6 3 5 Tactical Retreats 1 | . . . 1 Traps | -11 -10 -10 -10 ------- Run | Jun Mat Min Sub Traps Triggered 3 | . . . 3 Indirectly . | . . . . Trap Hack Attempts . | . . . . Triggered . | . . . . Disarmed . | . . . . Reprogrammed . | . . . . Reused . | . . . . Traps Extracted . | . . . . Installed . | . . . . Triggered . | . . . . Most Traps Carried 4 | . . 3 4 Machines | -11 -10 -10 -10 ---------- Run | Jun Mat Min Sub Machines Disabled 4 | . . 1 3 Max in Single Turn 3 | . . 1 3 Machines Repaired . | . . . . Machines Sabotaged . | . . . . Overloaded Fab Kills . | . . . . Hacking | -11 -10 -10 -10 --------- Run | Jun Mat Min Sub Machines Accessed 5 | . 4 1 . Terminals 4 | . 4 . . Fabricators . | . . . . Repair Stations . | . . . . Recycling Units . | . . . . Scanalyzers . | . . . . Garrison Access . | . . . . Total Hacks 11 | . 10 1 . Successful 7 | . 6 1 . Failed 4 | . 4 . . Catastrophic . | . . . . Database Lockouts . | . . . . Manual 9 | . 9 . . Terminals 10 | . 10 . . Fabricators . | . . . . Repair Stations . | . . . . Recycling Units . | . . . . Scanalyzers . | . . . . Garrison Access . | . . . . Terminal Hacks 2 | . 1 1 . Open Door 1 | . . 1 . Unreport Threat 1 | . 1 . . Fabricator Hacks . | . . . . Repair Station Hacks . | . . . . Recycling Unit Hacks . | . . . . Scanalyzer . | . . . . Garrison Access Hacks . | . . . . Unauthorized Hacks 5 | . 5 . . Terminals 5 | . 5 . . Botnet 3 | . 3 . . Detonate 1 | . 1 . . Disrupt 1 | . 1 . . Fabricators . | . . . . Repair Stations . | . . . . Recycling Units . | . . . . Scanalyzers . | . . . . Garrison Access . | . . . . Data Cores Recovered . | . . . . Used . | . . . . Hacking Detections 3 | . 3 . . Full Trace Events . | . . . . Feedback Events . | . . . . Feedback Blocked . | . . . . Robot Schematics Acquired . | . . . . Robots Built . | . . . . Authchips . | . . . . Time . | . . . . Total Robot Build Rating . | . . . . Part Schematics Acquired . | . . . . Parts Built . | . . . . Authchips . | . . . . Time . | . . . . Total Part Build Rating . | . . . . Parts Repaired . | . . . . Time . | . . . . Parts Recycled . | . . . . Recycled Matter . | . . . . Retrieved Matter . | . . . . Retrieved Components . | . . . . Parts Scanalyzed . | . . . . Part Schematics Acquired . | . . . . Parts Damaged . | . . . . Bothacking | -11 -10 -10 -10 ------------ Run | Jun Mat Min Sub Used RIF Installer . | . . . . Robots Hacked . | . . . . Non-combat . | . . . . Combat . | . . . . Robot Hacks Applied . | . . . . Relay Couplers Released . | . . . . Fabnet Peak Effective % . | . . . . Robots Rewired . | . . . . Allies Hacked . | . . . . Hacks Repelled . | . . . . Allies | -11 -10 -10 -10 -------- Run | Jun Mat Min Sub Total Allies 3 | . . 3 . Largest Group 3 | . . 3 3 Highest-Rated Group 40 | . . 40 40 Highest-Rated Ally 16 | . . 16 16 Total Orders 2 | . . . 2 STAY 1 | . . . 1 FOLLOW 1 | . . . 1 Ally Attacks 14 | . . 6 8 Total Damage 183 | . . 57 126 Kills 1 | . . . 1 Allies Corrupted . | . . . . Allies Melted . | . . . . Intel | -11 -10 -10 -10 ------- Run | Jun Mat Min Sub Robot Analysis Total . | . . . . Derelict Logs Recovered 4 | . . 2 2 Drone Launches . | . . . . Drone Recoveries . | . . . . Exploration | -11 -10 -10 -10 ------------- Run | Jun Mat Min Sub Turns Passed 3647 | 27 275 860 2485 Spaces Moved 1940 | 37 138 577 1188 Core 47 | 37 10 . . Treads 402 | . 128 81 193 Legs . | . . . . Wheels 1491 | . . 496 995 Hover . | . . . . Flight . | . . . . Fastest Speed 50 | 50 50 90 175 Average Speed 174 | 50 152 137 198 Slowest Speed 480 | 50 160 175 480 Overloaded Moves . | . . . . Propulsion Burnouts . | . . . . Robots Hopped . | . . . . Cave-ins Triggered . | . . . . Exploration Rate (%) 46 | 4 38 94 50 Regions Visited 3 Branch Regions 2 Pre-discovered Areas 1 | . . 1 . Known Exits Taken . | . . . . Unknown Exits Taken 3 | 1 1 1 . Scrap Searched 10 | . . 1 9 Spaces Dug 5 | . . . 5 Terrain Destroyed 187 | . . 5 182 Melee . | . . . . Projectile 11 | . . . 11 AOE 176 | . . 5 171 Terrain Rammed . | . . . . Walls Destroyed . | . . . . Machines Disabled . | . . . . Actions | -11 -10 -10 -10 --------- Run | Jun Mat Min Sub Total 2109 | 43 173 633 1260 Wait 31 | . 5 25 1 Move 1937 | 36 137 576 1188 Hop . | . . . . Pick Up 38 | 5 5 17 11 Fast Attach 7 | 2 2 1 2 Attach 8 | . 3 2 3 Detach . | . . . . Swap 4 | . 1 1 2 Drop 11 | . 3 3 5 Fire 73 | . 17 8 48 Melee . | . . . . Ram . | . . . . Kick . | . . . . Crush . | . . . . Escape Stasis . | . . . . Rewire . | . . . . Trap . | . . . . Miscellaneous . | . . . . Route ------- -11/Junkyard -10/Materials -10/Mines (discovered 3 exits: [*Mat x2] / [*Sub]) -10/Subcaves (discovered 2 exits: [*Mat] / [*Rec]) History --------- Turn | Location | Event 11 | -11/Junkyard | Discovered new exit (range 16) 28 | -11/Junkyard | Entered Materials 64 | -10/Materials | Core integrity fell below 50% 232 | -10/Materials | Discovered new exit (range 6) 303 | -10/Materials | Entered Mines 313 | -10/Mines | Assisted by bots powering up and referring to "LRC-V3" 317 | -10/Mines | Build established: Mutant 353 | -10/Mines | Learned Materials stockpile data 456 | -10/Mines | Met a Derelict shopkeep closing up shop 488 | -10/Mines | Discovered new exit (range 16) 490 | -10/Mines | Discovered new exit (range 14) 556 | -10/Mines | Discovered new exit (range 10) 601 | -10/Mines | Learned location of Zion (-7) 757 | -10/Mines | Found a hidden stash of uninstalled traps 1163 | -10/Mines | Entered Subcaves 1163 | -10/Subcaves | Accompanied by 3 allies 1276 | -10/Subcaves | A swath of the cavern ceiling suddenly collapsed 1798 | -10/Subcaves | Learned 8 Materials zone layouts 2580 | -10/Subcaves | Core integrity fell below 20% 2807 | -10/Subcaves | Learned Materials security intel 2837 | -10/Subcaves | Discovered new exit (range 12) 2965 | -10/Subcaves | Disturbed a concealed Subdweller 3494 | -10/Subcaves | Ambushed by Subdweller buried in earth 3636 | -10/Subcaves | Ambushed by Subdweller buried in earth 3638 | -10/Subcaves | Ambushed by Subdweller buried in earth 3642 | -10/Subcaves | Discovered new exit (range 12) 3647 | -10/Subcaves | Ambushed by Subdweller buried in earth 3648 | -10/Subcaves | Destroyed by 8K-UGK(R) with Subdweller Laser Last Messages --------------- 03633_ 60-71G(R): "ARGHSUB!" 03634_ 60-71G(R) destroyed. 03635_ WP-7VI(R): "ARGHSUB!" 03636_ S-10 Pest destroyed. 03636_ Lgt. Treads destroyed. 03636_ Destroyed Lgt. Treads. 03637_ 8Q-QEL(R): "ARGHSUB!" 03638_ Autobeam fries itself beyond repair. 03639_ J5-Q2R(R): "GOODGOOD!" 03639_ WP-7VI(R) affixes Scrap Shield Fragment to Scrap Shield. 03640_ Lgt. Ion Engine destroyed. 03640_ WP-7VI(R) destroyed. 03640_ 8Q-QEL(R) destroyed. 03641_ Lgt. Assault Rifle fries itself beyond repair. 03642_ EXIT=FOUND 03643_ Autobeam Turret destroyed. 03644_ The unstable cave ceiling collapses. 03647_ Lgt. Ion Engine fries itself beyond repair. 03648_ D4-VKJ(R): "ARGHSUB!" 03648_ 8K-UGK(R): "ARGHSUB!" Map ----- +----------------------------------------------------+ | #?????????###????????########### % % #????????? | | ?????????????????????????????## #????????? | | ?????????????????????????????# #????????? | | ?????????????????????????????## # #????????? | | ??????????????????????????????#####" ##????????? | | ?????????????????????????????????## ##?????????? | | ????????????????????????????????## #??????????? | | ????????????????????????????##### # #??????????? | | ????????????????????????????# ##?????????? | | ????????????????????????????# #?????????? | | ????????????????????????????# #### #?????????? | | ????????????????????????????## ???# ##?????????? | | ??????????????????##?????????# ??## #??????????? | | ???????????????? ##???????# ## #??????????? | | ?????????????? ###????## # # #??????????? | | ?????????????? ##??# #??????????? | | ?????????????; ######## ##?????????? | | ?????????????;R ## #?## #?????????? | | ????????????? ; # ## ## #?????????? | | ?????????????#; R # #?????????? | | ??????????????# # ##?????????? | | ?????????????## #### ###????????? | | ?????????????#; &| #?## # #????????? | | ?????????????#< & * R#?## #????????? | | ?????????????#; ! #?# "##???????? | | ????????????# ; @#??# #" "#???????? | | ????????????# ; ; #??### "##??????? | | ????????????# ; ;;; #??#"" ! " ##?????? | | ????????????# ;;; ;;; ###### #?????? | | ????????????### ## #### ### [ ##?????? | | ?????????????????### ## #??????? | | ??????????????????# ! #??????? | | ??????????????????# ! #??????? | | ?????????????????## ###??????? | | ?????????????????# "" " #???????? | | ?????????????????# "## ###???????? | | ?????????????????# #######?????????? | | ?????????????????### #### #??????????????? | | ???????????????????## ##??# #??????????????? | | ????????????????????### #???# #??????????????? | | ??????????????????????## ##??? #??????????????? | | ???????????????????????####???? ??????????????? | | ??????????????????????????????? ?????????????? | | ???????????????????????????????## ?????????????? | | ????????????????????????????????? #????????????? | | ????????????????????????????????? ????????????? | | ????????????????????????????????? ????????????? | | ????????????????????????????????? ?????????????? | | ?????????????????????????????????????????????????? | | ?????????????????????????????????????????????????? | +----------------------------------------------------+ Best States ------------- Heat Dissipation 25 Energy Generation 10 Energy Capacity 125 Matter Stores 374 Matter Capacity 450 Sight Range 16 Terrain Scan Density 10 Evasion (%) 50 Targeting Accuracy 5 Recoil Reduction 2 Item Schematics ----------------- None Robot Schematics ------------------ None Fabricated ------------ Nothing Alien Tech Used ----------------- None Achievements -------------- None Challenges ------------ None Game ------ Seed MyomerSurveybotSink Manual? 0 Play Time 00:30:16 Cumulative 424.2 hours Start 2023.07.10 @ 11:33:59 End 2023.07.10 @ 14:22:26 Sessions 1 Manual Loads 0 Difficulty Rogue Special Mode None Game No. 201 Rogue 197 Adventurer 0 Explorer 4 Win Type - Total 24 Types 8/1/2/5/1/2/3/1/1 Lore% 81 Gallery% 86 Achievement% 80 Wizard Run 0 Options --------- ASCII 0 Keyboard 0 Movement Mouse Keybinds 0 Fullscreen 1 Font 18/SmallcapsGlow Map View 76x50 Tactical HUD 1 Map Filters NONE Filters NONE Steam 1 RUN: ec1a2bfb-0507-462f-a1c7-13476c2a4024